[Event "ESP-chT Honor Division 2022"]
[Site "Linares"]
[Date "2022.09.23"]
[Round "7.2"]
[White "Alekseenko, Kirill"]
[Black "Tabatabaei, M. Amin"]
[Result "1/2-1/2"]
[ECO "C50"]
[WhiteElo "2707"]
[BlackElo "2651"]
[Annotator "TA"]
[PlyCount "90"]
[EventDate "2022.09.17"]
[EventType "team-tourn"]
[EventCountry "ESP"]
[SourceTitle "playchess.com"]
[Source "ChessBase"]
[SourceQuality "1"]
[TimeControl "5400+30"]

{[%evp 21,90,8,6,14,22,17,6,24,30,27,27,30,38,35,39,11,14,28,22,12,14,12,0,0,40,25,29,15,10,7,24,0,7,0,0,0,0,-9,-22,-11,-14,-85,-1,-23,-25,-22,-14,-13,0,0,0,0,0,0,0,-6,0,0,0,0,0,-14,-5,-31,-12,-11,0,0,0,0,0]} 1. e4 e5 2. Nf3 Nc6 3. Bc4 Nf6 4. d3 Bc5 5. O-O d6 6. c3 a6 7. Bb3 O-O 8. Re1 Ba7 9. h3 h6 10. Nbd2 {[%cal Bb1d2,Bd2f1,Bf1g3,Bg3e4][%mdl 32]} Be6 11. Bc2 Re8 12. Nf1 {C54: Giuoco Piano: 4 c3 Nf6, main lines with 5 d4 and 5 d3.} d5 13. exd5 Bxd5 {The main line 13...Bxd5 scores better than 13...Nxd5.} 14. Ng3 Bc5 15. b4 Bf8 16. a4 b5 17. Be3 Qd7 {[#]} 18. Ne4 $146 {With the idea Nxf6+.} ({Predecessor:} 18. Nd2 Rad8 19. Nde4 Nxe4 20. dxe4 Be6 21. Qxd7 Rxd7 22. axb5 axb5 23. Red1 Rc8 24. Rxd7 Bxd7 {½-½ (24) Kopeikin,V (2430)-Jung,R (2272) ICCF email 2016}) 18... Qe6 19. Nfd2 Nd7 {[%cal Bf6d7,Bd7e5,Be5c4][%mdl 32]} 20. Ng3 {[%cal Oc3c4] next c4! is good for White.} Ne7 21. d4 Qc6 {[%csl LRc3,LRg2]} 22. dxe5 Nxe5 23. Bd4 N7g6 24. axb5 axb5 25. Rxa8 Qxa8 26. Nde4 Nc4 27. Qh5 {[%cal Oe4f6]} Nd6 {[%cal Rd6e4]} (27... Nf4 $2 28. Qf5 Ng6 {[#]} 29. Nf6+ $1 {[%mdl 512]} gxf6 30. Rxe8 Qxe8 31. Qxd5 $18) 28. f3 c6 29. Nf5 Nxf5 30. Qxf5 Bd6 31. Kh1 (31. Qg4 $1 $11) 31... Bg3 ({Black should try} 31... Be5 $17) 32. Rd1 Be5 33. Bxe5 $1 Rxe5 34. Qd7 Re7 35. Qd6 Re6 36. Qg3 Qa2 37. Rd2 Qa1+ 38. Kh2 Qc1 {[#] ...f5 is the strong threat.} 39. Qf2 $1 ({But not} 39. Qb8+ Kh7 40. Rf2 Qe1 $15) 39... Ne5 40. Rd1 Qf4+ 41. Ng3 Nc4 42. Rd4 Qe5 (42... Qc1 $5 {[%cal Re6e1]}) 43. Bf5 {The position is equal.} Re7 44. Be4 Bxe4 45. Rxe4 Qc7 {Weighted Error Value: White=0.09 (flawless) /Black=0.07 (flawless)} 1/2-1/2

[Event "ESP-chT Honor Division 2022"]
[Site "Linares"]
[Date "2022.09.23"]
[Round "7.3"]
[White "Iturrizaga Bonelli, Eduardo"]
[Black "Korobov, Anton"]
[Result "0-1"]
[ECO "A17"]
[WhiteElo "2630"]
[BlackElo "2671"]
[Annotator "TA"]
[PlyCount "80"]
[EventDate "2022.09.17"]
[EventType "team-tourn"]
[EventCountry "ESP"]
[SourceTitle "playchess.com"]
[Source "ChessBase"]
[SourceQuality "1"]
[TimeControl "5400+30"]

{[%evp 9,80,15,23,9,18,14,16,18,17,20,21,17,18,12,21,5,10,16,12,6,35,30,35,33,31,47,46,48,36,37,38,7,12,19,4,0,16,0,0,0,0,0,0,0,0,0,0,6,17,0,0,0,0,0,58,53,63,0,0,0,0,-162,0,0,0,0,0,0,0,0,0,-12839,98]} 1. c4 {[%emt 0:00:21]} Nf6 {[%emt 0:00:20]} 2. Nc3 {[%emt 0:00:23]} e6 {[%emt 0:00:21]} 3. Nf3 {[%emt 0:01:42]} d5 {[%emt 0:00:29]} 4. e3 {[%emt 0:00:32]} a6 {[%emt 0:01:12]} 5. b3 {[%emt 0:05:30]} Bd6 {[%emt 0:02:47]} 6. Bb2 {[%emt 0:00:51] A17: English Opening: 1...Nf6 with ...Bb4.} b6 {[%emt 0:01:15]} 7. cxd5 {[%emt 0:00:48]} exd5 {[%emt 0:00:13]} 8. g3 {[%emt 0:00:04] The position is equal.} O-O {[%emt 0:01:03]} 9. Bg2 {[%emt 0:00:07]} Bb7 {[%emt 0:00:46]} 10. O-O {[%emt 0:00:08]} Nbd7 {[%emt 0:00:40]} 11. Rc1 {[%emt 0:01:45]} Re8 {[%emt 0:01:15]} 12. Ne2 {[%emt 0:02:16]} Rc8 {[%emt 0:04:59]} 13. d4 {[%emt 0:11:00]} Ne4 {[%emt 0:04:09] [#]} 14. Bh3 $146 {[%emt 0:13:06][%cal Of3e5]} ({Predecessor:} 14. Nf4 Bxf4 15. exf4 f6 16. Re1 c6 17. Ba3 Nf8 18. Nh4 Qd7 19. Qd3 a5 20. Re3 {0-1 (36) Gukesh,D (2547)-Abdusattorov,N (2635) Moscow 2019}) 14... c5 {[%emt 0:05:23]} 15. dxc5 {[%emt 0:08:18]} bxc5 {[%emt 0:00:26]} 16. Nf4 {[%emt 0:00:06]} Bxf4 {[%emt 0:10:22]} 17. exf4 {[%emt 0:00:23]} ({Reject} 17. gxf4 Rc6 $11) 17... Rc7 {[%emt 0:01:35]} 18. b4 {[%emt 0:04:36]} c4 {[%emt 0:12:34]} 19. Bd4 {[%emt 0:05:38]} a5 {[%emt 0:03:54]} 20. a3 {[%emt 0:18:35]} axb4 {[%emt 0:02:45]} 21. axb4 {[%emt 0:00:08]} Bc6 {[%emt 0:00:20]} 22. Ba1 {[%emt 0:07:52]} Ndf6 {[%emt 0:03:26]} 23. Ne5 {[%emt 0:05:05]} Qb8 {[%emt 0:13:39]} 24. f3 {[%emt 0:03:42]} Nd6 {[%emt 0:00:26]} 25. Nxc6 {[%emt 0:00:09]} (25. Bd4 {looks sharper.} Bd7 26. Nxd7 Nxd7 27. Re1) 25... Rxc6 {[%emt 0:00:04]} 26. Bxf6 {[%emt 0:00:05]} gxf6 {[%emt 0:00:04]} 27. Qxd5 {[%emt 0:00:03]} Qb6+ {[%emt 0:02:04]} 28. Kh1 {[%emt 0:00:04] aiming for Bd7.} Rd8 {[%emt 0:06:19] Against Bd7} 29. Rfd1 {[%emt 0:03:56]} Nb7 {[%emt 0:02:40]} 30. Qh5 {[%emt 0:00:20]} Rxd1+ {[%emt 0:02:25]} 31. Rxd1 {[%emt 0:00:04] Rd7 would kill now.} Nd6 {[%emt 0:02:06]} ({Black should play} 31... Qe3 $11) 32. Bd7 {[%emt 0:01:02]} Rc7 {[%emt 0:02:32][%cal Ob6f2] [#] Strongly threatening ...Qf2!} 33. Bf5 $40 {[%emt 0:00:06][%mdl 128] White has some attack.} (33. Kg2 $1 $14) 33... Qf2 $1 $11 {[%emt 0:02:36][%cal Oh7h6] And now ...h6! would win.} 34. Qxh7+ {[%emt 0:06:57]} Kf8 {[%emt 0:00:02][%cal Bg8f8,Bf8e7,Be7e6][%mdl 32]} 35. Qh8+ {[%emt 0:01:34]} Ke7 {[%emt 0:00:07]} 36. Qa8 {[%emt 0:00:28]} c3 {[%emt 0:02:53]} 37. Qd5 $1 {[%emt 0:00:29]} Nxf5 {[%emt 0:00:33] The board is on fire.} 38. Qd8+ {[%emt 0:00:03]} (38. Qe4+ Kf8 39. Qxf5 Qxf3+ 40. Kg1 Qxd1+ 41. Kg2 c2 42. Qxf6 c1=Q 43. Qh8+ Ke7 44. Qe5+ Kd8 45. Qg5+ Kc8 46. Qf5+ Kb7 47. Qb5+ Ka8 48. Qe8+ Rc8 49. Qe4+ Qc6 50. Qxc6+ Rxc6 51. h4 Rc2+ 52. Kh3 f5 53. b5 Qh1#) 38... Ke6 {[%emt 0:00:05]} 39. Qd5+ {[%emt 0:00:04]} Ke7 {[%emt 0:00:03][%cal Oe7f8] ( -> ...Kf8!)} 40. g4 $2 {[%emt 0:01:30][%mdl 8192] [#]} (40. Qe4+ Kf8 41. Rg1 c2 $1 42. Rc1 Ne3) (40. Qd8+ $11 Ke6 41. Qd5+ Ke7) 40... Qg2+ $2 {[%emt 0:01:31][%mdl 32768] Weighted Error Value: White=0.16 (very precise) /Black=0.05 (flawless) . Loss on time!?} 0-1

[Event "ESP-chT Honor Division 2022"]
[Site "Linares"]
[Date "2022.09.23"]
[Round "7.4"]
[White "Alonso Rosell, Alvar"]
[Black "Yuffa, Daniil"]
[Result "1/2-1/2"]
[ECO "D37"]
[WhiteElo "2564"]
[BlackElo "2600"]
[Annotator "TA"]
[PlyCount "81"]
[EventDate "2022.09.17"]
[EventType "team-tourn"]
[EventCountry "ESP"]
[SourceTitle "playchess.com"]
[Source "ChessBase"]
[SourceQuality "1"]
[TimeControl "5400+30"]

{[%evp 13,81,5,10,10,2,9,18,10,12,18,7,5,14,-10,-12,-11,-11,-22,-11,-14,-16,-11,-11,-11,-22,-16,0,0,0,0,0,0,10,0,5,5,5,5,14,14,27,27,35,35,57,57,57,57,57,35,35,32,56,20,30,0,23,0,49,33,47,6,22,0,35,0,22,0,40,0]} 1. d4 {[%emt 0:00:03] Edouard,Romain} Nf6 {[%emt 0:01:06]} 2. c4 {[%emt 0:00:06]} e6 {[%emt 0:00:08]} 3. Nf3 {[%emt 0:00:06]} d5 {[%emt 0:00:06]} 4. Nc3 {[%emt 0:00:05]} Be7 {[%emt 0:00:06]} 5. Bf4 {[%emt 0:00:12]} O-O {[%emt 0:00:06]} 6. e3 {[%emt 0:00:07]} Nbd7 {[%emt 0:00:05]} 7. c5 {[%emt 0:00:24]} Nh5 {[%emt 0:00:21]} 8. Bd3 {[%emt 0:00:06] D37: Queen's Gambit Declined: 5 Bf4.} Nxf4 {[%emt 0:01:14]} 9. exf4 {[%emt 0:00:02]} b6 {[%emt 0:00:10]} 10. b4 {[%emt 0:00:10] The position is equal.} a5 {[%emt 0:00:22]} 11. a3 {[%emt 0:00:07]} c6 {[%emt 0:00:47]} 12. O-O {[%emt 0:00:07]} Ba6 {[%emt 0:08:33] The modern move.} 13. Ne2 {[%emt 0:00:22]} Qc7 {[%emt 0:04:53]} 14. h4 {[%emt 0:00:59] [#]} Ra7 $146 {[%emt 0:05:56]} ({Predecessor:} 14... h6 15. g3 Bc4 16. Qc2 b5 17. Rfe1 Ra7 18. Nc3 Rfa8 19. Rab1 axb4 20. axb4 Bxd3 21. Qxd3 {1-0 (47) Ding,L (2805)-Grischuk,A (2777) Ekaterinburg 2021 CBM 202 [Edouard,Romain]}) 15. g3 {[%emt 0:03:46]} Rfa8 {[%emt 0:06:42] [#] Threatens to win with ...Bxd3.} 16. Bxa6 {[%emt 0:18:04]} Rxa6 {[%emt 0:00:08]} 17. Rb1 {[%emt 0:00:18]} axb4 {[%emt 0:00:13]} 18. axb4 {[%emt 0:01:05]} b5 {[%emt 0:09:17]} 19. Kg2 {[%emt 0:02:00]} Ra2 {[%emt 0:03:44]} 20. Nc3 {[%emt 0:06:44]} R2a3 {[%emt 0:00:06]} 21. Qc2 {[%emt 0:01:06]} Bf6 {[%emt 0:05:55]} 22. Rfe1 {[%emt 0:01:34]} R8a6 {[%emt 0:03:17]} 23. Re2 {[%emt 0:01:44]} Ra8 {[%emt 0:06:42]} 24. Qd3 {[%emt 0:02:49]} R8a6 {[%emt 0:05:13]} 25. Rc2 {[%emt 0:00:39]} Ra8 {[%emt 0:02:44]} 26. Rbb2 {[%emt 0:02:55]} R8a6 {[%emt 0:01:18]} 27. Qd2 {[%emt 0:02:43]} Ra1 {[%emt 0:03:24]} 28. Ra2 {[%emt 0:02:21]} R1xa2 {[%emt 0:00:23]} 29. Rxa2 {[%emt 0:00:10]} Qa7 {[%emt 0:00:24]} 30. Rxa6 {[%emt 0:00:17]} Qxa6 {[%emt 0:00:02]} 31. Qa2 {[%emt 0:00:20]} Nb8 {[%emt 0:03:54]} 32. Qb2 {[%emt 0:09:01]} Nd7 {[%emt 0:00:19][%cal Bb8d7,Bd7f8,Bf8g6][%mdl 32]} 33. Kf1 {[%emt 0:00:17]} Bd8 {[%emt 0:03:20]} 34. Kg2 {[%emt 0:05:29]} Bc7 {[%emt 0:01:44]} 35. Kf1 {[%emt 0:01:42]} f6 {[%emt 0:01:15]} (35... Bd8 $11 {is more appropriate.}) 36. Kg2 {[%emt 0:01:42]} Nf8 {[%emt 0:02:49]} 37. Ne2 {[%emt 0:09:47]} Ng6 {[%emt 0:01:28]} 38. Nc3 {[%emt 0:01:54]} Nf8 {[%emt 0:03:09]} 39. Ne2 {[%emt 0:01:29]} Ng6 {[%emt 0:01:58]} 40. Nc3 {[%emt 0:00:09]} Nf8 {[%emt 0:01:43]} 41. Ne2 {[%emt 0:00:11] Weighted Error Value: White=0.08 (flawless) /Black=0.07 (flawless)} 1/2-1/2

[Event "ESP-chT Honor Division 2022"]
[Site "Linares"]
[Date "2022.09.23"]
[Round "7.5"]
[White "Ibarra Jerez, Jose Carlos"]
[Black "Henderson de La Fuente, Lance"]
[Result "0-1"]
[ECO "A45"]
[WhiteElo "2570"]
[BlackElo "2504"]
[Annotator "TA"]
[PlyCount "48"]
[EventDate "2022.09.17"]
[EventType "team-tourn"]
[EventCountry "ESP"]
[SourceTitle "playchess.com"]
[Source "ChessBase"]
[SourceQuality "1"]
[TimeControl "5400+30"]

{[%evp 9,48,0,0,0,0,-7,0,0,1,0,20,20,20,10,14,16,20,13,44,0,0,-11,18,-12,0,-14,58,-52,0,0,0,-82,-82,-103,-81,-123,-120,-131,-123,-522,-516]} 1. d4 {[%emt 0:01:05]} Nf6 {[%emt 0:01:09]} 2. Nc3 {[%emt 0:00:15]} d5 {[%emt 0:00:28]} 3. Bf4 {[%emt 0:00:16]} c5 {[%emt 0:00:28]} 4. e4 {[%emt 0:00:14]} Nxe4 {[%emt 0:01:38]} 5. Nxe4 {[%emt 0:00:11]} dxe4 {[%emt 0:00:04]} 6. dxc5 {[%emt 0:00:24] D00: 1 d4 d5: Unusual lines.} Qa5+ {[%emt 0:00:29]} 7. c3 {[%emt 0:00:48] And now b4 would win.} Qxc5 {[%emt 0:00:24]} 8. Qa4+ {[%emt 0:00:29] The position is equal.} Nc6 {[%emt 0:00:28]} 9. Qxe4 {[%emt 0:00:10]} Bf5 {[%emt 0:01:03]} 10. Qa4 {[%emt 0:02:28]} e5 {[%emt 0:06:17]} 11. Be3 {[%emt 0:01:45]} Qa5 {[%emt 0:00:45]} 12. Qxa5 {[%emt 0:03:16]} Nxa5 {[%emt 0:00:07]} 13. O-O-O {[%emt 0:14:26]} f6 {[%emt 0:03:28] [#]} 14. b4 $146 {[%emt 0:03:28]} (14. Bb5+ $14 Nc6 15. Bc4) ({Predecessor:} 14. f4 exf4 15. Bxf4 Be6 16. Nf3 Kf7 17. Ng1 Nc6 18. Nf3 Bc5 19. Bb5 Rad8 20. Bc7 Rxd1+ 21. Rxd1 {0-1 (48) Niemann,H (2642)-Aronian,L (2772) Chess.com INT 2022}) 14... Nc6 $11 {[%emt 0:00:51]} 15. Kb2 {[%emt 0:00:33]} Be6 {[%emt 0:07:40] Prevents Bc4.} 16. Nf3 {[%emt 0:04:53]} a5 {[%emt 0:12:35][%cal Ba7a5,Ba5a4,Ba4a3][%mdl 32]} 17. b5 {[%emt 0:11:17]} Nb8 {[%emt 0:03:08]} (17... Ne7 $1 $11) 18. b6 {[%emt 0:04:00]} (18. Nd2 $1 $14) 18... Be7 {[%emt 0:11:28]} (18... a4 $15) 19. Bb5+ {[%emt 0:01:58]} Kf7 {[%emt 0:00:46]} 20. Nd2 {[%emt 0:06:02]} (20. a4 $1 $11 {keeps the balance.}) 20... a4 $1 $17 {[%emt 0:03:25]} 21. f4 {[%emt 0:13:20]} a3+ {[%emt 0:01:19]} 22. Kc2 {[%emt 0:03:24] [#]} Rc8 $1 {[%emt 0:02:05] ...Na6 is the strong threat.} ({Worse is} 22... Bxa2 23. fxe5 Rc8 24. exf6 gxf6 25. Nb3 $15) 23. fxe5 {[%emt 0:05:04] [#]} Ra5 $1 {[%emt 0:00:57]} ({And not} 23... fxe5 24. Rhf1+ Kg8 25. Nb3 $17) ({Not} 23... Bxa2 24. exf6 gxf6 25. Nb3 $11) 24. exf6 $2 {[%emt 0:03:22][%mdl 8192]} (24. Bd3 $17) 24... Rxb5 {[%emt 0:00:32] Weighted Error Value: White=0.52/Black=0.13 (very precise)} 0-1

[Event "ESP-chT Honor Division 2022"]
[Site "Linares"]
[Date "2022.09.23"]
[Round "7.6"]
[White "Cramling, Pia"]
[Black "Batsiashvili, Nino"]
[Result "1/2-1/2"]
[ECO "A43"]
[WhiteElo "2468"]
[BlackElo "2477"]
[Annotator "TA"]
[PlyCount "121"]
[EventDate "2022.09.17"]
[EventType "team-tourn"]
[EventCountry "ESP"]
[SourceTitle "playchess.com"]
[Source "ChessBase"]
[SourceQuality "1"]
[TimeControl "5400+30"]

{[%evp 11,121,31,45,3,3,14,7,7,31,16,38,37,50,39,39,46,39,44,47,45,48,42,53,35,61,55,69,45,53,23,57,0,150,133,191,184,164,171,174,162,154,138,167,154,152,149,152,93,108,85,110,68,96,96,127,110,92,101,216,239,340,244,247,64,65,66,67,70,62,33,32,32,31,30,38,33,45,25,24,1,1,1,1,1,2,2,2,2,2,1,1,1,8,8,8,1,1,1,2,2,1,2,2,0,6,0,0,0,0,0,0,-8]} 1. d4 {[%emt 0:00:08]} Nf6 {[%emt 0:00:13]} 2. Nf3 {[%emt 0:00:08]} c5 {[%emt 0:00:07]} 3. d5 {[%emt 0:00:35]} b5 {[%emt 0:00:19]} 4. c4 {[%emt 0:02:01]} b4 {[%emt 0:00:21]} 5. Qc2 {[%emt 0:02:28]} g6 {[%emt 0:04:42]} 6. e4 {[%emt 0:00:22]} d6 {[%emt 0:00:33]} 7. Bd3 {[%emt 0:01:11] A57: Benko/Volga Gambit.} (7. a3 $5 {[%cal Ra3b4]}) 7... Bg7 {[%emt 0:00:22]} 8. h3 {[%emt 0:00:14]} O-O {[%emt 0:01:40]} 9. O-O {[%emt 0:00:57] [#]} Nfd7 $146 {[%emt 0:03:27]} ({Predecessor:} 9... e6 10. Nbd2 exd5 11. cxd5 Nbd7 12. Nc4 Nb6 13. Re1 Ba6 14. Bf4 Bxc4 15. Bxc4 Nxc4 16. Qxc4 {1-0 (40) Caruana,F (2781)-Dubov,D (2711) Chess.com INT 2022}) 10. Be3 {[%emt 0:04:29]} Na6 {[%emt 0:00:22]} 11. Nbd2 {[%emt 0:02:21]} b3 {[%emt 0:09:02]} 12. axb3 {[%emt 0:01:46]} Nb4 {[%emt 0:00:06]} 13. Qb1 {[%emt 0:00:10]} Nxd3 {[%emt 0:06:46]} 14. Qxd3 {[%emt 0:00:08]} Bxb2 {[%emt 0:00:02]} 15. Ra2 {[%emt 0:03:17]} Bg7 {[%emt 0:00:05]} 16. Nb1 {[%emt 0:22:07]} Qb6 {[%emt 0:00:30]} 17. Qc2 {[%emt 0:00:49]} Nb8 {[%emt 0:07:07]} 18. Nc3 {[%emt 0:04:01][%cal Ob3b4]} Na6 {[%emt 0:00:11]} 19. Raa1 {[%emt 0:01:31] White is more active.} Rb8 {[%emt 0:05:49]} 20. Rab1 {[%emt 0:00:36]} f5 {[%emt 0:05:35]} 21. Ne2 {[%emt 0:10:44]} (21. Qc1 $14) 21... h6 {[%emt 0:07:03] [#]} (21... Nb4 $11 22. Qd2 fxe4) 22. Nh4 $1 $16 {[%emt 0:02:55]} f4 {[%emt 0:14:48]} (22... Nb4 $16 23. Qd2 Kh7) 23. Nxf4 $18 {[%emt 0:01:40]} Rxf4 {[%emt 0:00:04]} 24. Bxf4 {[%emt 0:00:32][%cal Be3f4,Bf4g3,Bg3h4][%mdl 32]} g5 {[%emt 0:00:02]} 25. Bg3 {[%emt 0:00:43] aiming for Ng6.} gxh4 {[%emt 0:00:10]} 26. Bxh4 {[%emt 0:00:13]} Nb4 {[%emt 0:02:39]} 27. Qe2 {[%emt 0:03:30]} Qd8 {[%emt 0:01:14]} 28. f4 {[%emt 0:04:16]} Qf8 {[%emt 0:00:02]} 29. g4 {[%emt 0:09:24]} ({Better is} 29. Rf3) 29... Bd4+ $16 {[%emt 0:00:32]} 30. Kh1 {[%emt 0:00:05]} Qg7 {[%emt 0:00:13]} 31. Bg3 {[%emt 0:06:23]} Bb7 {[%emt 0:04:29]} 32. Kh2 {[%emt 0:00:28]} Re8 {[%emt 0:04:25]} 33. e5 {[%emt 0:04:24]} dxe5 {[%emt 0:00:19]} 34. fxe5 {[%emt 0:01:57][%cal Bf4e5,Be5e6][%mdl 32]} Qg6 {[%emt 0:00:22]} (34... e6 $16) 35. e6 $18 {[%emt 0:02:59] Strongly threatening Rf5.} Nc2 {[%emt 0:05:48]} (35... Nxd5 {was necessary.} 36. cxd5 Bxd5) 36. Rbc1 {[%emt 0:02:33]} Ne3 {[%emt 0:00:58]} 37. Rf3 {[%emt 0:01:41]} ({White should try} 37. Rf7 $18) 37... Nxd5 $1 $14 {[%emt 0:00:20]} 38. cxd5 {[%emt 0:00:06]} Bxd5 {[%emt 0:00:04] A strong pair of Bishops.} 39. Rf5 {[%emt 0:01:11]} Bxe6 {[%emt 0:01:20]} 40. Rfxc5 {[%emt 0:00:44]} Bxc5 {[%emt 0:00:17]} 41. Rxc5 {[%emt 0:00:02]} Bxb3 {[%emt 0:00:32]} 42. Qe3 {[%emt 0:02:03]} Bf7 {[%emt 0:01:20][%cal Oe7e5]} 43. Bf4 {[%emt 0:00:13]} Kh7 {[%emt 0:01:16]} 44. Kg3 {[%emt 0:00:36] [#] Rh5 is the strong threat.} Qb6 {[%emt 0:02:31]} 45. Rc7 {[%emt 0:02:14]} Qxe3+ {[%emt 0:01:35] The position is equal.} (45... e5 {looks sharper.} 46. Rxf7+ Kg6 47. Qxb6+ axb6 48. Rf5 exf4+ 49. Kxf4 Rc8) 46. Bxe3 $11 {[%emt 0:00:01][%mdl 4096] Endgame KRB-KRB} h5 {[%emt 0:02:02]} 47. Rxa7 {[%emt 0:00:19]} hxg4 {[%emt 0:00:05]} 48. hxg4 {[%emt 0:00:03]} Kg6 {[%emt 0:00:35]} 49. Ra6+ {[%emt 0:00:15]} e6 {[%emt 0:00:08]} 50. Kf4 {[%emt 0:00:51]} Rc8 {[%emt 0:00:06]} 51. Rd6 {[%emt 0:00:47]} Rc4+ {[%emt 0:00:39]} 52. Rd4 {[%emt 0:00:22]} Rc6 {[%emt 0:00:43]} 53. Rd8 {[%emt 0:00:20]} Ra6 {[%emt 0:02:30]} 54. Bd4 {[%emt 0:00:31]} Ra5 {[%emt 0:00:15]} 55. Be5 {[%emt 0:00:17]} Ra4+ {[%emt 0:00:50]} 56. Rd4 {[%emt 0:00:05]} Ra1 {[%emt 0:00:26]} 57. Rd3 {[%emt 0:00:14]} Rh1 {[%emt 0:00:23]} 58. Rf3 {[%emt 0:00:52]} Be8 {[%emt 0:01:43]} 59. Kg3 {[%emt 0:00:20]} Rg1+ {[%emt 0:00:49]} 60. Kf2 {[%emt 0:00:10]} Rxg4 {[%emt 0:00:22]} 61. Rg3 {[%emt 0:00:07] Black defended with fortune.  Weighted Error Value: White=0.18 (very precise) /Black=0.16 (very precise)} 1/2-1/2

[Event "ESP-chT Honor Division 2022"]
[Site "Linares"]
[Date "2022.09.23"]
[Round "7.7"]
[White "Nihal Sarin"]
[Black "Kryvoruchko, Yuriy"]
[Result "1/2-1/2"]
[ECO "C67"]
[WhiteElo "2677"]
[BlackElo "2669"]
[Annotator "TA"]
[PlyCount "69"]
[EventDate "2022.09.17"]
[EventType "team-tourn"]
[EventCountry "ESP"]
[SourceTitle "playchess.com"]
[Source "ChessBase"]
[SourceQuality "1"]
[TimeControl "5400+30"]

{[%evp 9,69,13,12,0,0,0,3,0,14,16,10,6,20,5,5,15,8,11,32,29,23,25,35,24,37,33,33,33,31,33,33,12,29,32,43,46,52,57,57,25,24,10,23,27,49,25,47,12,39,19,40,0,0,0,0,0,0,0,1,0,0,0]} 1. e4 {[%emt 0:02:41]} e5 {[%emt 0:00:05]} 2. Nf3 {[%emt 0:00:04]} Nc6 {[%emt 0:00:03]} 3. Bb5 {[%emt 0:00:06]} Nf6 {[%emt 0:00:05][%cal Bg8f6,Bf6e4,Be4d6][%mdl 32]} 4. O-O {[%emt 0:00:14]} Nxe4 {[%emt 0:00:03]} 5. Re1 {[%emt 0:00:05]} Nd6 {[%emt 0:00:06]} 6. a4 {[%emt 0:00:05] C67: Ruy Lopez: Berlin Defence: 4 0-0 Nxe4.} Be7 {[%emt 0:00:39]} 7. Nc3 {[%emt 0:00:11] Inhibits e4.} O-O {[%emt 0:01:05]} 8. d4 {[%emt 0:00:07]} e4 {[%emt 0:00:30]} 9. Nxe4 {[%emt 0:00:19]} Nxe4 {[%emt 0:00:58]} 10. Rxe4 {[%emt 0:00:08]} d5 {[%emt 0:00:28]} 11. Re1 {[%emt 0:00:08]} Bg4 {[%emt 0:02:01]} 12. Bxc6 {[%emt 0:00:09]} bxc6 {[%emt 0:00:10]} 13. Qd3 {[%emt 0:00:07]} Bxf3 {[%emt 0:12:18]} 14. Qxf3 {[%emt 0:00:08]} c5 {[%emt 0:00:04]} 15. dxc5 {[%emt 0:00:08]} Bxc5 {[%emt 0:00:20]} 16. b3 {[%emt 0:00:06] [#]} Bd4 $146 {[%emt 0:07:49]} ({Predecessor:} 16... Re8 17. Bb2 Qd6 18. Qc3 f6 19. Qd3 c6 20. g3 Qd7 21. Bc3 Rxe1+ 22. Rxe1 Re8 23. Rxe8+ Qxe8 {1-0 (42) Maurizzi,M (2506)-Barrish,D (2283) Bastia 2022}) 17. c3 {[%emt 0:06:15]} Bf6 {[%emt 0:00:27]} 18. Ba3 {[%emt 0:02:43]} Re8 {[%emt 0:00:14]} 19. Bc5 {[%emt 0:17:29]} c6 {[%emt 0:05:40]} 20. Rxe8+ {[%emt 0:05:18]} Qxe8 {[%emt 0:00:04]} 21. a5 {[%emt 0:00:06]} Qe5 {[%emt 0:22:28]} 22. Bd4 {[%emt 0:09:57]} Qd6 {[%emt 0:00:20]} 23. Bxf6 {[%emt 0:00:07]} Qxf6 $14 {[%emt 0:00:03][%mdl 4096] Endgame KQR-KQR} 24. Qe3 {[%emt 0:04:25]} Qe6 {[%emt 0:03:08]} 25. Qc5 {[%emt 0:03:31]} Re8 {[%emt 0:00:08][%cal Oe6e1] [#] ( -> ...Qe1+!)} 26. h3 {[%emt 0:00:16]} a6 {[%emt 0:03:41]} 27. Qb6 {[%emt 0:01:52]} Qc8 {[%emt 0:00:09]} 28. c4 {[%emt 0:13:18]} Re6 {[%emt 0:14:09]} 29. Qc5 {[%emt 0:00:39]} dxc4 {[%emt 0:04:19]} 30. bxc4 {[%emt 0:00:29]} h6 {[%emt 0:00:06] The position is equal.} 31. Rd1 {[%emt 0:06:07]} Rf6 {[%emt 0:00:31]} 32. Rd6 {[%emt 0:04:31]} Re6 {[%emt 0:04:06]} 33. Rd1 {[%emt 0:06:03]} Rf6 {[%emt 0:00:03]} 34. Rd6 {[%emt 0:04:20]} Re6 {[%emt 0:00:33]} 35. Rd1 {[%emt 0:00:26] Weighted Error Value: White=0.07 (flawless) /Black=0.06 (flawless)} 1/2-1/2